fUST/lending_fUST_20260427
["ID","MTS","AMOUNT","RATE_DAILY","PERIOD"]
[421198327,1777233040395,-500.01,0.00019178,2]
[421198328,1777233040404,-301.16693664,0.00019178,2]
[421198329,1777233040414,-2695.47,0.00019178,2]
[421198330,1777233040424,-500.0,0.00019178,2]
[421198331,1777233040433,-642.79,0.00019178,2]
[421198332,1777233040442,-1725.6,0.00019178,2]
[421198333,1777233040451,-500.0,0.00019178,2]
[421198334,1777233040461,-1961.79,0.00019178,2]
[421198335,1777233040471,-1791.21,0.00019178,2]
[421198336,1777233040480,-500.0,0.00019178,2]
[421198337,1777233040489,-500.0,0.00019178,2]
[421198338,1777233040499,-639.50508183,0.00019178,2]
[421198339,1777233040508,-1308.61,0.00019178,2]
[421198340,1777233040518,-1051.7,0.00019178,2]
[421198341,1777233040528,-500.0,0.00019178,2]
[421198342,1777233040538,-500.0,0.00019178,2]
[421198343,1777233040548,-1536.47,0.00019178,2]
[421198344,1777233040558,-1523.16,0.00019178,2]
[421198345,1777233040568,-5098.15,0.00019178,2]
[421198346,1777233040578,-500.0,0.00019178,2]
[421198347,1777233040587,-500.0,0.00019178,2]
[421198348,1777233040596,-500.0,0.00019178,2]
[421198349,1777233040606,-500.0,0.00019178,2]
[421198350,1777233040615,-357.92471246,0.00019178,2]
[421198351,1777233040624,-500.0,0.00019178,2]
[421198352,1777233040634,-1656.16,0.00019178,2]
[421198353,1777233040643,-500.0,0.00019178,2]
[421198354,1777233040652,-4015.03,0.00019178,2]
[421198355,1777233040662,-1373.44,0.00019178,2]
[421198356,1777233040671,-555.54,0.00019178,2]
[421198357,1777233040680,-500.0,0.00019178,2]
[421198358,1777233040690,-3402.54,0.00019178,2]
[421198359,1777233040700,-8728.67,0.00019178,2]
[421198360,1777233040709,-500.0,0.00019178,2]
[421198361,1777233040719,-725.91,0.00019178,2]
[421198362,1777233040728,-500.0,0.00019178,2]
[421198363,1777233040738,-1730.51,0.00019178,2]
[421198364,1777233040747,-500.0,0.00019178,2]
[421198365,1777233040757,-500.0,0.00019178,2]
[421198366,1777233040766,-732.27,0.00019178,2]
[421198367,1777233040776,-647.17,0.00019178,2]
[421198368,1777233040785,-692.29,0.00019178,2]
[421198369,1777233040795,-500.0,0.00019178,2]
[421198370,1777233040806,-500.0,0.00019178,2]
[421198371,1777233040815,-500.0,0.00019178,2]
[421198372,1777233040825,-500.0,0.00019178,2]
[421198373,1777233040834,-500.0,0.00019178,2]
[421198374,1777233040844,-2078.07,0.00019178,2]
[421198375,1777233040853,-1690.81,0.00019178,2]
[421198376,1777233040862,-518.83,0.00019178,2]
[421198377,1777233040872,-553.93095714,0.00019178,2]
[421198378,1777233040881,-500.0,0.00019178,2]
[421198379,1777233040891,-2366.32,0.00019178,2]
[421198380,1777233040900,-10945.32,0.00019178,2]
[421198381,1777233040910,-500.0,0.00019178,2]
[421198382,1777233040919,-500.0,0.00019178,2]
[421198383,1777233040928,-500.0,0.00019178,2]
[421198384,1777233040939,-500.0,0.00019178,2]
[421198385,1777233040948,-7106.04,0.00019178,2]
[421198386,1777233040961,-500.0,0.00019178,2]
[421198387,1777233040972,-523.89,0.00019178,2]
[421198388,1777233040983,-500.0,0.00019178,2]
[421198389,1777233040992,-542.28847178,0.00019178,2]
[421198390,1777233041002,-500.0,0.00019178,2]
[421198391,1777233041011,-6975.7,0.00019178,2]
[421198392,1777233041021,-500.0,0.00019178,2]
[421198393,1777233041030,-500.0,0.00019178,2]
[421198394,1777233041245,-1890.68,0.00019178,2]
[421198395,1777233041257,-2935.53,0.00019178,2]
[421198396,1777233041266,-2088.89,0.00019178,2]
[421198397,1777233041276,-929.75,0.00019178,2]
[421198398,1777233041285,-500.0,0.00019178,2]
[421198399,1777233041294,-180.81314259,0.00019178,2]
[421198400,1777233041304,-6354.57,0.00019178,2]
[421198401,1777233041314,-1152.23,0.00019178,2]
[421198402,1777233041323,-3238.92,0.00019178,2]
[421198403,1777233041332,-11067.69,0.00019178,2]
[421198404,1777233041342,-500.0,0.00019178,2]
[421198405,1777233041351,-500.0,0.00019178,2]
[421198406,1777233041361,-500.0,0.00019178,2]
[421198407,1777233041372,-1262.61,0.00019178,2]
[421198408,1777233041381,-500.0,0.00019178,2]
[421198409,1777233041391,-1992.85,0.00019178,2]
[421198410,1777233041401,-500.0,0.00019178,2]
[421198411,1777233041410,-500.0,0.00019178,2]
[421198412,1777233041420,-500.0,0.00019178,2]
[421198413,1777233041429,-500.0,0.00019178,2]
[421198414,1777233041439,-440.44557243,0.00019178,2]
[421198415,1777233041449,-500.0,0.00019178,2]
[421198416,1777233041458,-779.58,0.00019178,2]
[421198417,1777233041467,-568.69,0.00019178,2]
[421198418,1777233041476,-2433.34,0.00019178,2]
[421198419,1777233041486,-500.0,0.00019178,2]
[421198421,1777233041497,-500.0,0.00019178,2]
[421198422,1777233041507,-500.0,0.00019178,2]
[421198423,1777233041517,-500.0,0.00019178,2]
[421198424,1777233041526,-500.0,0.00019178,2]
[421198425,1777233041535,-2568.54,0.00019178,2]
[421198426,1777233041545,-500.0,0.00019178,2]
[421198427,1777233041555,-500.0,0.00019178,2]
[421198428,1777233041564,-500.0,0.00019178,2]
[421198429,1777233041574,-1431.45,0.00019178,2]
[421198431,1777233041584,-2079.69,0.00019178,2]
[421198432,1777233041594,-743.39,0.00019178,2]
[421198433,1777233041604,-7457.55,0.00019178,2]
[421198434,1777233041614,-500.0,0.00019178,2]
[421198436,1777233041623,-3636.7,0.00019178,2]
[421198438,1777233041633,-620.12,0.00019178,2]
[421198440,1777233041643,-518.72444431,0.00019178,2]
[421198442,1777233041652,-500.0,0.00019178,2]
[421198444,1777233041662,-6008.74,0.00019178,2]
[421198446,1777233041671,-40184.86518782,0.00019178,2]
[421198744,1777233044588,-185.0,0.00017861,2]
[421198746,1777233044598,-852.38318,0.00019178,2]
[421198748,1777233044609,-920.32817028,0.00019178,2]
[421198903,1777233046589,-300.0,0.00019178,2]
[421198905,1777233046600,-341.57904831,0.00019178,2]
[421199876,1777233075700,5000.0,0.0002465,120]
[421199886,1777233309292,300000.0,0.0002465,120]
[421199892,1777233486880,195238.0,0.0002465,120]
[421199900,1777233606136,250000.0,0.0002465,120]
[421199902,1777233646036,1054.04012524,7.6e-05,2]
[421199904,1777233692709,250000.8,0.0002465,120]
[421199914,1777234149125,-5000.0,7.449e-05,10]
[421199915,1777234149148,-527.0,7.562e-05,2]
[421199916,1777234149171,-150.0,7.562e-05,2]
[421199917,1777234149196,-830.75592044,7.6e-05,2]
[421199918,1777234150101,-4639.66506923,7.6e-05,2]
[421199919,1777234157121,-5000.0,7.524e-05,10]
[421199920,1777234157142,-306.13182409,7.6e-05,2]
[421199921,1777234157164,-177.0,9.562e-05,2]
[421199922,1777234157185,-250.0,0.0001019,2]
[421199923,1777234157208,-204.0,0.00011562,2]
[421199924,1777234157230,-231.0,0.00013562,2]
[421199925,1777234157251,-1000.0,0.00013699,2]
[421199926,1777234157274,-258.0,0.00015562,2]
[421199927,1777234157295,-150.0,0.00016,2]
[421199928,1777234157316,-14.94693229,0.00017055,2]
[421199929,1777234228057,200.0,4.009e-05,2]
[421199930,1777234228451,235.84476,4.009e-05,2]
[421199987,1777234232679,-3004.0182655,0.00016885,10]
[421199989,1777234232689,-600.64527932,0.00016955,2]
[421199991,1777234232699,-170.05306771,0.00017055,2]
[421199993,1777234232709,-285.0,0.00017562,2]
[421199995,1777234232719,-315.65795337,0.00018604,2]
[421199999,1777234232731,-9.65463843,0.00018604,2]
[421200002,1777234232741,-151.0,0.00018641,2]
[421200004,1777234232751,-114.43875444,0.00018877,30]
[421200173,1777234238682,-49.48251176,0.00018877,30]
[421200174,1777234238692,-180.779,0.00019078,2]
[421200175,1777234238702,-621.10268005,0.00019078,2]
[421200176,1777234238712,-358.432993,0.00019078,2]
[421200177,1777234238722,-1041.64876444,0.00019078,2]
[421200178,1777234238800,-704.220022,0.00019078,2]
[421200179,1777234238813,-274.39834706,0.00019078,2]
[421200180,1777234238902,-118.33973423,0.00019078,2]
[421200181,1777234238912,-400.0,0.000191,4]
[421200182,1777234238922,-400.0,0.000191,3]
[421200183,1777234238931,-72.47382902,0.00019177,2]
[421200207,1777234243636,-82.52617098,0.00019177,2]
[421200208,1777234243647,-204.88385968,0.00019178,2]
[421200209,1777234243661,-98.47408902,0.00019178,2]
[421200210,1777234243671,-337.31792473,0.00019178,2]
[421200211,1777234243680,-64.20798625,0.00019178,2]
[421200212,1777234243795,-435.79201375,0.00019178,2]
[421200213,1777234243805,-23643.85482094,0.00019178,2]
[421200222,1777234246792,-1479.15119859,0.00019178,2]
[421200225,1777234246953,-1463.00884548,0.00019178,2]
[421200226,1777234247010,-37.87438599,0.00019178,2]
[421200227,1777234247020,-907.904977,0.00019178,2]
[421200228,1777234247030,-1419.118124,0.00019178,2]
[421200229,1777234247039,-500.0,0.00019178,2]
[421200230,1777234247049,-500.0,0.00019178,2]
[421200231,1777234247059,-500.0,0.00019178,2]
[421200232,1777234247068,-678.78,0.00019178,2]
[421200233,1777234247078,-500.0,0.00019178,2]
[421200234,1777234247088,-500.0,0.00019178,2]
[421200235,1777234247097,-2899.48,0.00019178,2]
[421200236,1777234247107,-500.0,0.00019178,2]
[421200237,1777234247116,-500.0,0.00019178,2]
[421200238,1777234247126,-500.0,0.00019178,2]
[421200239,1777234247135,-500.0,0.00019178,2]
[421200240,1777234247145,-390.18149891,0.00019178,2]
[421200248,1777235354162,-5000.0,9.506e-05,2]
[421200249,1777235354185,-553.0,9.506e-05,2]
[421200250,1777235354207,-1200.0,9.602e-05,2]
[421200251,1777235354229,-150.0,9.603e-05,2]
[421200252,1777235354250,-395.53982518,0.0001,2]
[421200253,1777235354276,-300.0,0.00010097,2]
[421200254,1777235354300,-300.0,0.00010097,2]
[421200255,1777235354324,-300.0,0.00010097,2]
[421200256,1777235354348,-300.0,0.00010097,2]
[421200257,1777235354372,-300.0,0.00010097,2]
[421200258,1777235354396,-300.0,0.00010097,2]
[421200259,1777235354420,-300.0,0.00010097,2]
[421200260,1777235354444,-300.0,0.00010097,2]
[421200261,1777235354467,-300.0,0.00010097,2]
[421200262,1777235354492,-300.0,0.00010097,2]
[421200263,1777235354515,-300.0,0.00010097,2]
[421200264,1777235354539,-300.0,0.00010097,2]
[421200265,1777235354564,-300.0,0.00010097,2]
[421200266,1777235354589,-300.0,0.00010097,2]
[421200267,1777235354613,-300.0,0.00010097,2]
[421200268,1777235354635,-177.0,0.00011603,2]
[421200269,1777235354657,-204.0,0.00013603,2]
[421200270,1777235354679,-872.40424626,0.00013699,2]
[421200271,1777235431840,-5000.0,0.00013562,2]
[421200273,1777235431849,-613.0,0.00013562,2]
[421200275,1777235431859,-127.59575374,0.00013699,2]
[421200277,1777235431868,-231.0,0.00015603,2]
[421200279,1777235431879,-152.0,0.00016807,7]
[421200280,1777235431887,-258.0,0.00017603,2]
[421200282,1777235431896,-151.0,0.00017782,2]
[421200284,1777235431904,-185.0,0.00018213,2]
[421200285,1777235431911,-300.0,0.00018217,2]
[421200286,1777235431921,-537.6845,0.00018218,2]
[421200287,1777235431931,-151.0,0.00018218,2]
[421200288,1777235431940,-151.0,0.00018218,2]
[421200289,1777235431950,-151.0,0.00018218,2]
[421200290,1777235431960,-151.0,0.00018218,2]
[421200291,1777235431969,-151.0,0.00018218,2]
[421200292,1777235431979,-151.0,0.00018218,2]
[421200293,1777235431988,-151.0,0.00018218,2]
[421200294,1777235431998,-151.0,0.00018218,2]
[421200295,1777235432008,-151.0,0.00018218,2]
[421200296,1777235432018,-151.0,0.00018218,2]
[421200297,1777235432027,-151.0,0.00018218,2]
[421200298,1777235432037,-151.0,0.00018218,2]
[421200299,1777235432046,-151.0,0.00018218,2]
[421200300,1777235432056,-151.0,0.00018218,2]
[421200301,1777235432067,-151.0,0.00018218,2]
[421200302,1777235432076,-151.0,0.00018218,2]
[421200303,1777235432086,-2150.738,0.00018218,2]
[421200304,1777235432095,-151.0,0.00018218,2]
[421200305,1777235432104,-151.0,0.00018218,2]
[421200306,1777235432114,-151.0,0.00018218,2]
[421200307,1777235432123,-154.24020893,0.00018218,2]
[421200308,1777235432133,-600.0,0.00018581,2]
[421200309,1777235432143,-325.4528442,0.00018604,2]
[421200310,1777235432152,-151.0,0.0001869,2]
[421200311,1777235432162,-158.0270257,0.00018739,2]
[421200312,1777235432172,-242.88910312,0.00018782,2]
[421200313,1777235432181,-739.17620301,0.00018789,2]
[421200314,1777235432191,-242.88910311,0.00018856,2]
[421200315,1777235432200,-8078.24591646,0.00018878,2]
[421200316,1777235432210,-98025.06134179,0.00018878,2]
[421200440,1777235438006,-19820.97142835,0.00018878,2]
[421200441,1777235438170,-6227.95677425,0.00018878,2]
[421200442,1777235438180,-152.0,0.00018882,7]
[421200443,1777235438191,-200.0,0.00018889,2]
[421200444,1777235438200,-242.88910311,0.0001893,2]
[421200445,1777235438210,-180.78,0.00018978,2]
[421200446,1777235438220,-31176.57289577,0.00018978,2]
[421200447,1777235438231,-2214.0,0.00018978,2]
[421200448,1777235438246,-1564.27,0.00018978,2]
[421200449,1777235440352,-937.2954476,0.00018978,2]
[421200450,1777235440405,-16015.54180994,0.00018978,2]
[421200456,1777235442958,-1357.39668019,0.00018978,2]
[421200457,1777235442970,-5996.62011487,0.00018978,2]
[421200458,1777235442979,-739.17620296,0.00018987,2]
[421200459,1777235442988,-242.88910311,0.00019004,2]
[421200460,1777235442998,-242.88910311,0.00019078,2]
[421200461,1777235443007,-202.23863247,0.00019178,2]
[421200462,1777235443017,-500.0,0.00019178,2]
[421200463,1777235443027,-84.59790714,0.00019178,2]
[421200464,1777235443050,-16.46235937,0.00019178,2]
[421200465,1777235443066,-413.15870265,0.00019178,2]
[421200466,1777235443076,-2097.23,0.00019178,2]
[421200467,1777235443085,-500.0,0.00019178,2]
[421200468,1777235443095,-329.34801857,0.00019178,2]
[421200471,1777235446397,-36.13881798,0.00019178,2]
[421200472,1777235446448,-132.81134531,0.00019178,2]
[421200473,1777235446464,-1.70181814,0.00019178,2]
[421200474,1777235446474,-500.0,0.00019178,2]
[421200475,1777235446484,-1526.94818186,0.00019178,2]
[421200478,1777236335154,-1584.63876783,0.0001264,2]
[421200479,1777236335176,-599.0,0.0001264,2]
[421200480,1777236335199,-2556.09290076,0.00012768,2]
[421200481,1777236467624,64.15524,1e-08,2]
[421200482,1777236467651,385.84476,1e-08,2]
[421200483,1777236547098,-265.36553351,0.0001264,2]
[421200519,1777236632019,-665.05,0.00012514,2]
[421200530,1777236632126,-1831.25740204,0.00012514,2]
[421200533,1777236632136,-597.0,0.00012514,2]
[421200535,1777236632146,-150.0,0.00012801,2]
[421200537,1777236632155,-1000.0,0.00013699,2]
[421200539,1777236632165,-177.0,0.00014801,2]
[421200541,1777236632174,-204.0,0.00016801,2]
[421200543,1777236632183,-170.31,0.0001726,7]
[421200545,1777236632192,-151.0,0.00017802,2]
[421200547,1777236632201,-152.0,0.00017865,7]
[421200549,1777236632211,-152.0,0.00017865,7]
[421200551,1777236632220,-200.0,0.00017881,2]
[421200553,1777236632230,-300.0,0.00017899,2]
[421200555,1777236632239,-1911.39,0.000179,2]
[421200557,1777236632249,-152.0,0.00017919,7]
[421200558,1777236632258,-152.0,0.00017919,7]
[421200560,1777236632267,-152.0,0.00017919,7]
[421200562,1777236632277,-152.0,0.00017919,7]
[421200564,1777236632286,-152.0,0.00018134,7]
[421200567,1777236632296,-152.0,0.00018134,7]
[421200569,1777236632305,-152.0,0.00018189,7]
[421200570,1777236632315,-152.0,0.00018189,7]
[421200571,1777236632325,-152.0,0.00018189,7]
[421200572,1777236632335,-152.0,0.00018687,7]
[421200573,1777236632343,-500.0,0.00018701,7]
[421200574,1777236632352,-500.0,0.00018701,7]
[421200575,1777236632362,-500.0,0.00018701,7]
[421200577,1777236632372,-500.0,0.00018701,7]
[421200579,1777236632381,-267.8444921,0.00018701,7]
[421200581,1777236632391,-200.75819951,0.00018701,7]
[421200583,1777236632401,-500.0,0.00018701,7]
[421200585,1777236632410,-500.0,0.00018701,7]
[421200586,1777236632419,-500.0,0.00018701,7]
[421200587,1777236632429,-500.0,0.00018701,7]
[421200588,1777236632438,-155.27987909,0.00018701,7]
[421200589,1777236632447,-500.0,0.00018701,7]
[421200590,1777236632457,-500.0,0.00018701,7]
[421200591,1777236632466,-500.0,0.00018701,7]
[421200592,1777236632475,-227.25788402,0.00018701,7]
[421200593,1777236632485,-152.0,0.00018752,7]
[421200594,1777236632495,-152.0,0.00018752,7]
[421200595,1777236632505,-152.0,0.00018771,7]
[421200596,1777236632515,-152.0,0.00018771,7]
[421200597,1777236632524,-152.0,0.00018771,7]
[421200598,1777236632534,-500.0,0.00018777,2]
[421200600,1777236632555,-500.0,0.00018777,3]
[421200602,1777236632564,-500.0,0.00018777,4]
[421200603,1777236632573,-430.76842727,0.00018777,5]
[421200604,1777236632583,-215.84820568,0.00018794,2]
[421200605,1777236632593,-231.0,0.00018801,2]
[421200606,1777236632603,-200.0,0.00018889,2]
[421200607,1777236632613,-175.46596944,0.00018904,2]
[421200608,1777236632623,-180.78,0.00018904,2]
[421200609,1777236632632,-152.0,0.00018954,7]
[421200610,1777236632642,-400.0,0.00018975,7]
[421200611,1777236632652,-400.0,0.00018975,7]
[421200612,1777236632663,-400.0,0.00018975,7]
[421200614,1777236632674,-400.0,0.00018975,7]
[421200616,1777236632683,-400.0,0.00018975,7]
[421200618,1777236632693,-400.0,0.00018975,7]
[421200620,1777236632703,-400.0,0.00018975,7]
[421200622,1777236632713,-400.0,0.00018975,7]
[421200624,1777236632723,-400.0,0.00018975,7]
[421200627,1777236632733,-400.0,0.00018975,7]
[421200628,1777236632742,-400.0,0.00018975,7]
[421200630,1777236632752,-400.0,0.00018975,7]
[421200632,1777236632762,-400.0,0.00018975,7]
[421200634,1777236632772,-400.0,0.00018975,7]
[421200635,1777236632781,-400.0,0.00018975,7]
[421200638,1777236632792,-255.91,0.00018975,7]
[421200640,1777236632802,-152.0,0.00018982,7]
[421200642,1777236632812,-152.0,0.00018982,7]
[421200643,1777236632822,-152.0,0.00019039,7]
[421200645,1777236632832,-152.0,0.00019039,7]
[421200647,1777236632841,-952.73390857,0.00019077,2]
[421200650,1777236632851,-384.03154724,0.00019077,2]
[421200651,1777236632860,-4039.12295823,0.00019078,2]
[421200654,1777236632870,-63306.34139755,0.00019078,2]
[421200700,1777236638374,-215.84820569,0.00018794,2]
[421200701,1777236638384,-500.0,0.00019077,2]
[421200702,1777236638393,-40.9661137,0.00019077,2]
[421200708,1777236640586,-459.0338863,0.00019077,2]
[421200709,1777236640597,-500.0,0.00019077,2]
[421200710,1777236640607,-260.88277005,0.00019077,2]
[421200711,1777236640640,-239.11722995,0.00019077,2]
[421200712,1777236640650,-71.23686393,0.00019077,2]
[421200719,1777236643265,-433.55611841,0.00019077,2]
[421200720,1777236643274,-500.0,0.00019077,2]
[421200721,1777236643283,-500.0,0.00019077,2]
[421200722,1777236643293,-500.0,0.00019077,2]
[421200723,1777236643303,-517.8309215,0.00019077,2]
[421200724,1777236643312,-5250.53778015,0.00019078,2]
[421200725,1777236643421,-304.0,0.00019078,2]
[421200730,1777236646746,-152.0,0.00017919,7]
[421200731,1777236646756,-152.0,0.00018705,7]
[421200732,1777236646765,-152.0,0.00018705,7]
[421200733,1777236646775,-70.63453695,0.00019078,2]
[421200734,1777236646786,-842.0,0.00019078,2]
[421200735,1777236646798,-12535.50549113,0.00019078,2]
[421200736,1777236646810,-235009.59699064,0.00019078,2]
[421200739,1777237246357,2097.48,7.6e-05,2]
[421200744,1777237639346,160.0,0.0001,30]
[421200745,1777237749119,-3046.76743166,7.449e-05,2]
[421200746,1777237749142,-525.0,7.449e-05,2]
[421200747,1777237749166,-150.0,7.506e-05,2]
[421200748,1777237749186,-12329.06929194,7.6e-05,2]
[421200749,1777237758116,-85.22414837,7.6e-05,2]
[421200750,1777237758136,-414.0,7.6e-05,2]
[421200751,1777237758158,-177.0,9.506e-05,2]
[421200752,1777237758179,-204.0,0.00011506,2]
[421200753,1777237758200,-231.0,0.00013506,2]
[421200754,1777237758222,-148.02384527,0.00013699,2]
[421200755,1777237760146,-808.52110881,0.00013699,2]
[421200805,1777237832572,-43.45504592,0.00013699,2]
[421200807,1777237832581,-258.0,0.00015506,2]
[421200809,1777237832591,-185.0,0.00017093,2]
[421200811,1777237832601,-285.0,0.00017506,2]
[421200813,1777237832611,-152.0,0.00018839,7]
[421200815,1777237832620,-152.0,0.00018839,7]
[421200817,1777237832631,-152.0,0.00018839,7]
[421200819,1777237832641,-152.0,0.00018839,7]
[421200821,1777237832651,-152.0,0.00018839,7]
[421200823,1777237832662,-152.0,0.00018839,7]
[421200825,1777237832671,-152.0,0.00018839,7]
[421200827,1777237832682,-152.0,0.00018839,7]
[421200829,1777237832691,-152.0,0.00018839,7]
[421200831,1777237832701,-152.0,0.00018839,7]
[421200833,1777237832711,-152.0,0.00018839,7]
[421200835,1777237832720,-152.0,0.00018839,7]
[421200837,1777237832730,-152.0,0.00018839,7]
[421200839,1777237832740,-152.0,0.00018839,7]
[421200841,1777237832750,-152.0,0.00018839,7]
[421200843,1777237832759,-152.0,0.00018839,7]
[421200845,1777237832769,-833.64216999,0.00018878,2]
[421200847,1777237832778,-268.82208307,0.00018977,2]
[421200849,1777237832788,-390.87010239,0.00018977,2]
[421200851,1777237832798,-2019.56147911,0.00018978,2]
[421200853,1777237832808,-311038.77872755,0.00018978,2]
[421200929,1777237838663,-3495.8960503,0.00018978,2]
[421200930,1777237838675,-1343.77689505,0.00018978,2]
[421200931,1777237839447,-2192.32677852,0.00018978,2]
[421200932,1777237839459,-629.29669085,0.00018978,2]
[421200933,1777237839468,-4434.44688273,0.00018978,2]
[421201026,1777237846824,-152.0,0.00017999,7]
[421201027,1777237846833,-98.0,0.00017999,7]
[421201037,1777238831121,-294.81128676,0.00011258,2]
[421201038,1777238949114,-1015.41604162,0.00011258,2]
[421201039,1777238951110,-2399.17146973,0.00011258,2]
[421201040,1777238951132,-5000.0,0.00011372,2]
[421201041,1777238951154,-300.0,0.00011486,2]
[421201042,1777238951176,-449.70974176,0.00011487,2]
[421201101,1777239032804,-363.59731847,0.00011258,2]
[421201107,1777239032859,-896.515803,0.00011258,2]
[421201109,1777239032870,-738.40358447,0.00011258,2]
[421201110,1777239032885,-3001.48329406,0.00011258,2]
[421201111,1777239032894,-150.0,0.00011315,2]
[421201112,1777239032904,-4260.12937072,0.00011372,2]
[421201113,1777239032914,-300.0,0.00011602,2]
[421201114,1777239032923,-200.0,0.00011603,2]
[421201115,1777239032933,-200.0,0.00011603,2]
[421201116,1777239032943,-200.0,0.00011603,2]
[421201117,1777239032953,-200.13096774,0.00011603,2]
[421201118,1777239032963,-177.0,0.00013315,2]
[421201119,1777239032973,-638.0,0.00013698,2]
[421201120,1777239032982,-396.29661045,0.00013699,2]
[421201273,1777239038904,-603.70338955,0.00013699,2]
[421201274,1777239038915,-204.0,0.00015315,2]
[421201275,1777239038926,-231.0,0.00017315,2]
[421201276,1777239038937,-54.0,0.00017999,7]
[421201277,1777239038947,-152.0,0.00017999,7]
[421201278,1777239038956,-114.29661045,0.00017999,7]
[421201296,1777239041428,-37.70338955,0.00017999,7]
[421201297,1777239041438,-152.0,0.00017999,7]
[421201298,1777239041449,-152.0,0.00017999,7]
[421201299,1777239041459,-152.0,0.00017999,7]
[421201300,1777239041468,-77.32116946,0.00017999,7]
[421201301,1777239041485,-74.67883054,0.00017999,7]
[421201302,1777239041495,-152.0,0.00017999,7]
[421201303,1777239041505,-152.0,0.00017999,7]
[421201304,1777239041514,-152.0,0.00017999,7]
[421201305,1777239041524,-185.0,0.00018231,2]
[421201306,1777239041534,-151.0,0.00018622,2]
[421201307,1777239041543,-151.5,0.00018804,2]
[421201308,1777239041552,-151.5,0.00018804,2]
[421201309,1777239041561,-302.48531585,0.00018804,2]
[421201310,1777239041570,-256.41925465,0.00018804,2]
[421201311,1777239041580,-500.0,0.00018804,2]
[421201312,1777239041590,-500.0,0.00018804,2]
[421201313,1777239041599,-500.0,0.00018804,2]
[421201314,1777239041609,-480.81539707,0.00018804,2]
[421201315,1777239041620,-19.18460293,0.00018804,2]
[421201316,1777239041629,-423.40047458,0.00018804,2]
[421201334,1777239043997,-76.59952542,0.00018804,2]
[421201335,1777239044008,-500.0,0.00018804,2]
[421201336,1777239044017,-275.05381617,0.00018804,2]
[421201337,1777239047061,-152.0,0.00018471,7]
[421201338,1777239047071,-152.0,0.00018471,7]
[421201339,1777239047080,-152.0,0.00018521,7]
[421201340,1777239047090,-359.3008751,0.00018804,2]
[421201341,1777239047100,-455.69120063,0.00018804,2]
[421201342,1777239047109,-500.0,0.00018804,2]
[421201343,1777239047119,-505.85203864,0.00018804,2]
[421201344,1777239047128,-152.0,0.00018865,7]
[421201345,1777239047138,-152.0,0.00018865,7]
[421201346,1777239047148,-152.0,0.00018918,7]
[421201347,1777239047157,-152.0,0.00018948,7]
[421201348,1777239047167,-152.0,0.00018948,7]
[421201349,1777239047176,-152.0,0.00018948,7]
[421201350,1777239047186,-152.0,0.00018948,7]
[421201351,1777239047195,-152.0,0.00018948,7]
[421201352,1777239047206,-152.0,0.00018948,7]
[421201353,1777239047216,-152.0,0.00018948,7]
[421201354,1777239047226,-338.01350268,0.00018978,2]
[421201355,1777239047236,-340.43809795,0.00019,2]
[421201356,1777239047245,-528.25590976,0.00019,2]
[421201357,1777239047255,-196.0,0.00019,2]
[421201358,1777239047264,-3682.0,0.00019,2]
[421201359,1777239047274,-163.696,0.00019,2]
[421201360,1777239047283,-222.0,0.00019,2]